fUSD/lending_fUSD_20250526
["ID","MTS","AMOUNT","RATE_DAILY","PERIOD"]
[362419814,1748274634766,-1000.0,0.00033825,2]
[362419815,1748274634776,-150.0,0.00033825,2]
[362419816,1748274634786,-150.0,0.0003383,2]
[362419817,1748274634796,-150.0,0.00033834,2]
[362419818,1748274634806,-150.0,0.00033837,2]
[362419819,1748274634816,-313.37248856,0.00033838,2]
[362419820,1748274634825,-150.0,0.0003384,2]
[362419821,1748274634835,-150.0,0.00033843,2]
[362419822,1748274634845,-150.0,0.00033846,2]
[362419823,1748274634854,-150.0,0.00033847,2]
[362419824,1748274634864,-151.0,0.00033847,7]
[362419825,1748274634873,-151.0,0.00033847,7]
[362419826,1748274634882,-151.0,0.00033847,7]
[362419827,1748274634892,-153.051645,0.00033847,7]
[362419828,1748274634901,-151.0,0.00033847,7]
[362419829,1748274634911,-151.0,0.00033847,7]
[362419830,1748274634920,-942.66582,0.00033847,7]
[362419831,1748274634930,-151.0,0.00033847,7]
[362419832,1748274634944,-942.66582,0.00033847,7]
[362419833,1748274634954,-151.0,0.00033847,7]
[362419834,1748274634963,-151.0,0.00033847,7]
[362419835,1748274634972,-156.610242,0.00033847,7]
[362419836,1748274634982,-151.0,0.00033847,7]
[362419837,1748274634992,-7981.0,0.00033847,2]
[362419838,1748274635001,-658.10388884,0.00033847,3]
[362419839,1748274635011,-171238.73666811,0.00033848,2]
[362419840,1748274635034,-44746.65709189,0.00033848,2]
[362419841,1748274635044,-75025.2141365,0.00033848,2]
[362419842,1748274635054,-500.0,0.00033848,30]
[362419843,1748274635063,-500.0,0.00033848,30]
[362419844,1748274635073,-107992.69688,0.00033848,2]
[362419845,1748274635083,-100033.618849,0.00033848,2]
[362419846,1748274635092,-151.0,0.00033848,7]
[362419847,1748274635101,-151.0,0.00033848,7]
[362419848,1748274635111,-151.0,0.00033848,7]
[362419849,1748274635122,-151.0,0.00033848,7]
[362419850,1748274635132,-151.0,0.00033848,7]
[362419851,1748274635143,-210.777285,0.00033848,7]
[362419852,1748274635154,-151.0,0.00033848,7]
[362419853,1748274635164,-173.849719,0.00033848,7]
[362419854,1748274635178,-151.0,0.00033848,7]
[362419855,1748274635190,-151.0,0.00033848,7]
[362419856,1748274635200,-942.66582,0.00033848,7]
[362419857,1748274635210,-151.0,0.00033848,7]
[362419858,1748274635219,-942.66582,0.00033848,7]
[362419859,1748274635229,-151.0,0.00033848,7]
[362419860,1748274635239,-942.66582,0.00033848,7]
[362419861,1748274635251,-168.354551,0.00033848,7]
[362419862,1748274635261,-942.66582,0.00033848,7]
[362419863,1748274635270,-165.762884,0.00033848,7]
[362419864,1748274635280,-151.0,0.00033848,7]
[362419865,1748274635289,-25008.4047122,0.00033848,2]
[362419866,1748274635299,-26998.17422,0.00033849,2]
[362419867,1748274635308,-150.0,0.00033849,2]
[362419868,1748274635319,-309.51243069,0.00033849,7]
[362419869,1748274635328,-244.40610701,0.00033849,7]
[362419870,1748274635338,-241.33862929,0.00033849,7]
[362419871,1748274635349,-500.0,0.00033849,7]
[362419872,1748274635493,-350.64374849,0.00033849,7]
[362419873,1748274635503,-500.0,0.00033849,7]
[362419874,1748274635513,-413.15380737,0.00033849,7]
[362419875,1748274635523,-171.0842749,0.00033849,7]
[362419876,1748274635532,-150.0,0.0003385,2]
[362419877,1748274635542,-158.9609818,0.0003385,2]
[362419878,1748274635552,-150.0,0.0003385,2]
[362419879,1748274635561,-700.0,0.00033857,120]
[362419880,1748274635571,-700.0,0.00033857,120]
[362419881,1748274635580,-700.0,0.00033857,120]
[362419882,1748274635589,-700.0,0.00033857,120]
[362419883,1748274635599,-450.66009894,0.00033857,120]
[362419884,1748274635608,-14534.43351276,0.00033858,2]
[362419885,1748274635628,-10473.97119944,0.00033858,2]
[362419886,1748274635637,-152.439777,0.00033858,7]
[362419887,1748274635647,-154.480354,0.00033858,7]
[362419888,1748274635656,-151.0,0.00033858,7]
[362419889,1748274635666,-155.217411,0.00033858,7]
[362419890,1748274635676,-152.420904,0.00033858,7]
[362419891,1748274635687,-151.0,0.00033858,7]
[362419892,1748274635696,-161.655417,0.00033858,7]
[362419893,1748274635705,-151.0,0.00033858,7]
[362419894,1748274635715,-151.0,0.00033858,7]
[362419895,1748274635725,-151.0,0.00033858,7]
[362419896,1748274635735,-154.514077,0.00033858,7]
[362419897,1748274635745,-151.0,0.00033858,7]
[362419898,1748274635754,-162.672506,0.00033858,7]
[362419899,1748274635764,-151.0,0.00033858,7]
[362419900,1748274635773,-169.775283,0.00033858,7]
[362419901,1748274635783,-17.85307156,0.00033858,7]
[362419902,1748274635795,-133.14692844,0.00033858,7]
[362419903,1748274635805,-151.0,0.00033858,7]
[362419904,1748274635817,-151.0,0.00033858,7]
[362419905,1748274635826,-204.029426,0.00033858,7]
[362419906,1748274635836,-151.0,0.00033858,7]
[362419907,1748274635846,-151.0,0.00033858,7]
[362419908,1748274635855,-151.0,0.00033858,7]
[362419909,1748274635865,-151.0,0.00033858,7]
[362419910,1748274635875,-151.0,0.00033858,7]
[362419911,1748274635884,-151.0,0.00033858,7]
[362419912,1748274635894,-152.199333,0.00033858,7]
[362419913,1748274635904,-151.0,0.00033858,7]
[362419914,1748274635914,-151.0,0.00033858,7]
[362419915,1748274635924,-151.0,0.00033858,7]
[362419916,1748274635933,-151.0,0.00033858,7]
[362419917,1748274635945,-151.0,0.00033858,7]
[362419918,1748274635954,-151.0,0.00033858,7]
[362419919,1748274635964,-151.0,0.00033858,7]
[362419920,1748274635973,-151.0,0.00033858,7]
[362419921,1748274635985,-151.0,0.00033858,7]
[362419922,1748274635995,-151.0,0.00033858,7]
[362419923,1748274636004,-151.0,0.00033858,7]
[362419924,1748274636013,-151.0,0.00033858,7]
[362419925,1748274636022,-151.0,0.00033858,7]
[362419926,1748274636032,-151.0,0.00033858,7]
[362419927,1748274636041,-151.0,0.00033858,7]
[362419928,1748274636050,-151.0,0.00033858,7]
[362419929,1748274636060,-151.0,0.00033858,7]
[362419930,1748274636069,-151.0,0.00033858,7]
[362419931,1748274636078,-151.0,0.00033858,7]
[362419932,1748274636088,-151.0,0.00033858,7]
[362419933,1748274636097,-151.0,0.00033858,7]
[362419934,1748274636106,-151.0,0.00033858,7]
[362419935,1748274636115,-151.0,0.00033858,7]
[362419936,1748274636125,-151.0,0.00033858,7]
[362419937,1748274636134,-151.0,0.00033858,7]
[362419938,1748274636143,-151.0,0.00033858,7]
[362419939,1748274636153,-151.0,0.00033858,7]
[362419940,1748274636163,-298.447321,0.00033858,7]
[362419941,1748274636174,-151.0,0.00033858,7]
[362419942,1748274636186,-292.739126,0.00033858,7]
[362419943,1748274636195,-216.697461,0.00033858,7]
[362419944,1748274636204,-216.697461,0.00033858,7]
[362419945,1748274636214,-216.697461,0.00033858,7]
[362419946,1748274636225,-216.697461,0.00033858,7]
[362419947,1748274636234,-216.697461,0.00033858,7]
[362419948,1748274636243,-216.697461,0.00033858,7]
[362419949,1748274636254,-151.0,0.00033858,7]
[362419950,1748274636263,-151.0,0.00033858,7]
[362419951,1748274636273,-151.0,0.00033858,7]
[362419952,1748274636282,-151.0,0.00033858,7]
[362419953,1748274636291,-151.0,0.00033858,7]
[362419954,1748274636301,-151.0,0.00033858,7]
[362419955,1748274636312,-151.0,0.00033858,7]
[362419956,1748274636321,-151.0,0.00033858,7]
[362419957,1748274636331,-151.0,0.00033858,7]
[362419958,1748274636341,-151.0,0.00033858,7]
[362419959,1748274636350,-151.0,0.00033858,7]
[362419960,1748274636360,-151.0,0.00033858,7]
[362419961,1748274636370,-151.0,0.00033858,7]
[362419962,1748274636380,-151.0,0.00033858,7]
[362419963,1748274636390,-281.680477,0.00033858,7]
[362419964,1748274636400,-156.093063,0.00033858,7]
[362419965,1748274636410,-151.0,0.00033858,7]
[362419966,1748274636420,-495.08435956,0.00033858,7]
[362419967,1748274636435,-447.58146044,0.00033858,7]
[362419968,1748274636446,-151.0,0.00033858,7]
[362419969,1748274636456,-601.41853956,0.00033858,7]
[362419975,1748274637837,-421.24,0.00033847,3]
[362419976,1748274638881,-22126.66755601,0.00033847,3]
[362419977,1748274638894,-612.81375122,0.00033847,3]
[362419978,1748274639192,-154.0,0.00033811,5]
[362419979,1748274639202,-5092.94218,0.00033847,3]
[362419980,1748274639214,-3974.60834037,0.00033847,3]
[362419984,1748274640207,-34755.78568683,0.00033847,3]
[362419985,1748274640264,-3715.05360762,0.00033847,3]
[362419986,1748274640279,-5511.75,0.00033847,3]
[362419987,1748274640290,-801.40000004,0.00033847,3]
[362419988,1748274640323,-110300.0,0.00033847,3]
[362420008,1748274646112,-285.06219079,0.00032323,2]
[362420009,1748274646123,-213.2099973,0.00032323,2]
[362420010,1748274646133,-1000.0,0.00033667,2]
[362420011,1748274646142,-453.7,0.00033699,2]
[362420012,1748274646152,-812.70985894,0.00033847,3]
[362420013,1748274646163,-1281.60000001,0.00033847,3]
[362420014,1748274646384,-34196.38884935,0.00033847,3]
[362420016,1748274921555,156.77,0.00013699,2]
[362420017,1748275128505,250.0,0.00015,2]
[362420018,1748275129585,300.0,0.00017,2]
[362420020,1748275748147,5133.64383177,0.00018,2]
[362420148,1748275832028,-350.0,0.00019,2]
[362420150,1748275832045,-266.5,0.000231,2]
[362420151,1748275832067,-29.10304853,0.000251,2]
[362420152,1748275832090,-170.89695147,0.000251,2]
[362420153,1748275832104,-100.51747653,0.00027528,2]
[362420154,1748275832116,-295.80682,0.00027528,2]
[362420155,1748275832139,-103.67570347,0.00027528,2]
[362420156,1748275832162,-4054.0,0.00029792,2]
[362420157,1748275832172,-154.0,0.00029792,2]
[362420158,1748275832182,-204.0,0.00030319,2]
[362420159,1748275832192,-500.0,0.00030465,7]
[362420160,1748275832202,-423.52,0.00030757,2]
[362420161,1748275832212,-538.83228188,0.00031397,7]
[362420162,1748275832222,-500.0,0.00031428,7]
[362420163,1748275832231,-84.29510853,0.00031999,3]
[362420164,1748275832389,-779.70489147,0.00031999,3]
[362420165,1748275832400,-1488.19510853,0.00032,2]
[362420166,1748275832459,-1409.64450223,0.00032,2]
[362420167,1748275832471,-787.72537109,0.00032,2]
[362420168,1748275832483,-1560.7712011,0.00032,2]
[362420169,1748275832494,-597.34073294,0.00032,2]
[362420170,1748275832505,-321.29154664,0.00032,2]
[362420171,1748275832517,-1280.86813107,0.00032,2]
[362420172,1748275832529,-518.32839176,0.00032,2]
[362420173,1748275832543,-298.522508,0.00032,2]
[362420174,1748275832554,-415.32026094,0.00032,2]
[362420246,1748275838167,-591.22387905,0.00029792,2]
[362420247,1748275838350,-289.77612095,0.00029792,2]
[362420248,1748275838360,-11321.9922457,0.00032,2]
[362420249,1748275838370,-895.81402036,0.00032114,7]
[362420250,1748275838379,-800.0,0.00032143,2]
[362420252,1748275838389,-436.648,0.00032143,2]
[362420253,1748275838398,-923.0,0.00032143,2]
[362420255,1748275838407,-1453.813,0.00032143,2]
[362420257,1748275838417,-151.0,0.00032192,2]
[362420259,1748275838427,-668.65185757,0.00032192,2]
[362420260,1748275838437,-207.4,0.00032192,2]
[362420261,1748275838447,-668.65185757,0.00032192,2]
[362420262,1748275838458,-150.0,0.00032444,2]
[362420263,1748275838467,-702.96,0.00032474,2]
[362420264,1748275838476,-180.29289785,0.00032531,2]
[362420266,1748275840270,-522.03710215,0.00032531,2]
[362420267,1748275840280,-250.0,0.00032531,2]
[362420268,1748275840290,-186.44,0.00032621,80]
[362420269,1748275840301,-152.53,0.00032621,2]
[362420270,1748275840310,-1000.0,0.00032633,2]
[362420271,1748275840325,-1043.58431814,0.00032705,2]
[362420272,1748275840335,-7817.29,0.00032715,2]
[362420273,1748275840345,-154.0,0.00032715,2]
[362420274,1748275840354,-632.88,0.00032756,2]
[362420275,1748275840364,-154.0,0.00032792,2]
[362420276,1748275840374,-758.899,0.00032792,2]
[362420277,1748275840383,-492.74672804,0.00032864,2]
[362420278,1748275840393,-453.7,0.00032877,2]
[362420279,1748275840403,-453.7,0.00032877,2]
[362420280,1748275840413,-453.7,0.00032878,2]
[362420281,1748275840422,-1015.095865,0.00032889,12]
[362420282,1748275840431,-208.23708792,0.000329,27]
[362420283,1748275840440,-160.0,0.00033,2]
[362420284,1748275840450,-160.0,0.00033,2]
[362420285,1748275840459,-160.0,0.00033,2]
[362420286,1748275840468,-160.0,0.00033,2]
[362420287,1748275840478,-160.0,0.00033,2]
[362420288,1748275840487,-160.0,0.00033,2]
[362420289,1748275840501,-160.0,0.00033,2]
[362420290,1748275840511,-160.0,0.00033,2]
[362420291,1748275840522,-160.0,0.00033,2]
[362420292,1748275840532,-160.0,0.00033,2]
[362420293,1748275840543,-160.0,0.00033,2]
[362420294,1748275840555,-186.6,0.00033,2]
[362420295,1748275840567,-156.0,0.00033,14]
[362420296,1748275840578,-423.52,0.00033021,2]
[362420297,1748275840589,-453.7,0.00033078,2]
[362420298,1748275840600,-156.0,0.00033151,30]
[362420299,1748275840610,-1067.287664,0.0003317,5]
[362420300,1748275840620,-204.0,0.00033287,7]
[362420301,1748275840634,-150.0,0.00033311,2]
[362420302,1748275840644,-429.36049325,0.00033446,2]
[362420303,1748275840654,-150.0,0.00033446,2]
[362420304,1748275840665,-150.0,0.00033473,2]
[362420305,1748275840674,-227.78397051,0.000335,31]
[362420306,1748275840684,-574.28,0.000335,31]
[362420307,1748275840694,-574.28,0.000335,31]
[362420308,1748275840704,-574.28,0.000335,31]
[362420309,1748275840714,-574.28,0.000335,31]
[362420310,1748275840724,-574.28,0.000335,31]
[362420311,1748275840733,-574.28,0.000335,31]
[362420312,1748275840743,-574.28,0.000335,31]
[362420313,1748275840753,-574.28,0.000335,31]
[362420314,1748275840763,-574.28,0.000335,31]
[362420315,1748275840773,-574.28,0.000335,31]
[362420316,1748275840782,-574.28,0.000335,31]
[362420317,1748275840792,-574.28,0.000335,31]
[362420318,1748275840801,-200.0,0.00033501,2]
[362420319,1748275840811,-156.587,0.00033561,2]
[362420320,1748275840823,-215.0738,0.00033561,2]
[362420321,1748275840833,-208.23708792,0.00033592,29]
[362420322,1748275840843,-160.0,0.000336,5]
[362420323,1748275840853,-150.0,0.00033615,2]
[362420324,1748275840863,-150.0,0.00033636,2]
[362420325,1748275840873,-150.0,0.00033669,2]
[362420326,1748275840883,-150.0,0.00033683,2]
[362420327,1748275840892,-500.0,0.00033684,2]
[362420328,1748275840903,-150.0,0.00033685,2]
[362420329,1748275840913,-453.7,0.00033699,2]
[362420330,1748275840923,-453.7,0.00033699,2]
[362420331,1748275840934,-453.7,0.00033699,2]
[362420332,1748275840944,-903.95,0.00033699,2]
[362420333,1748275840954,-453.7,0.00033699,2]
[362420334,1748275840964,-453.7,0.00033699,2]
[362420335,1748275840974,-325.55,0.00033699,2]
[362420336,1748275840985,-295.52,0.00033699,2]
[362420337,1748275840995,-162.96,0.00033699,2]
[362420338,1748275841004,-162.96,0.00033699,2]
[362420339,1748275841014,-162.96,0.00033699,2]
[362420340,1748275841024,-162.96,0.00033699,2]
[362420341,1748275841035,-162.96,0.00033699,2]
[362420342,1748275841044,-162.96,0.00033699,2]
[362420343,1748275841054,-162.96,0.00033699,2]
[362420344,1748275841064,-162.96,0.00033699,2]
[362420345,1748275841074,-162.96,0.00033699,2]
[362420346,1748275841084,-162.96,0.00033699,2]
[362420347,1748275841094,-2000.0,0.000337,2]
[362420348,1748275841103,-700.0,0.000337,12]
[362420349,1748275841113,-150.0,0.00033702,2]
[362420350,1748275841123,-150.0,0.00033702,2]
[362420351,1748275841132,-150.0,0.0003372,2]
[362420352,1748275841141,-150.0,0.00033726,2]
[362420353,1748275841151,-150.0,0.00033739,2]
[362420354,1748275841161,-150.0,0.00033768,2]
[362420355,1748275841170,-150.0,0.00033774,2]
[362420356,1748275841181,-150.0,0.00033774,2]
[362420357,1748275841191,-257.56921099,0.00033777,2]
[362420358,1748275841201,-10146.61394544,0.00033777,2]
[362420359,1748275841210,-4510.41456541,0.00033777,2]
[362420360,1748275841220,-150.0,0.00033778,2]
[362420361,1748275841230,-164.31146309,0.00033779,15]
[362420362,1748275841240,-1128.747,0.00033785,36]
[362420363,1748275841250,-159.42398421,0.00033787,6]
[362420364,1748275841259,-691.36423464,0.00033787,2]
[362420365,1748275841269,-1000.0,0.00033787,2]
[362420366,1748275841278,-5000.0,0.00033788,2]
[362420367,1748275841288,-177.24390456,0.00033788,6]
[362420368,1748275841298,-150.0,0.00033792,2]
[362420369,1748275841308,-1400.0,0.000338,12]
[362420370,1748275841318,-150.0,0.00033816,2]
[362420371,1748275841327,-150.0,0.00033823,2]
[362420372,1748275841337,-291.41799516,0.00033846,2]
[362420373,1748275841346,-151.0,0.00033847,7]
[362420374,1748275841356,-152.028064,0.00033847,7]
[362420375,1748275841365,-4013.98864618,0.00033847,3]
[362420376,1748275841375,-151.0,0.00033848,7]
[362420377,1748275841384,-154.999366,0.00033848,7]
[362420378,1748275841394,-150.0,0.00033852,2]
[362420379,1748275841403,-200.0,0.00033858,2]
[362420380,1748275841413,-4000.0,0.00033858,2]
[362420381,1748275841422,-300.0,0.00033858,30]
[362420382,1748275841432,-438.0,0.00033863,2]
[362420383,1748275841442,-14806.0,0.00033863,2]
[362420384,1748275841451,-150.0,0.00033864,2]
[362420385,1748275841461,-150.0,0.00033865,2]
[362420386,1748275841471,-228.89869,0.00033867,7]
[362420387,1748275841480,-25791.5519085,0.00033869,2]
[362420388,1748275841489,-172.1155725,0.0003387,2]
[362420389,1748275841499,-150.0,0.0003387,2]
[362420390,1748275841508,-500.0,0.00033873,5]
[362420391,1748275841518,-500.0,0.00033873,2]
[362420392,1748275841527,-500.0,0.00033873,5]
[362420393,1748275841537,-500.0,0.00033873,5]
[362420394,1748275841549,-150.0,0.00033875,2]
[362420395,1748275841558,-4904.0,0.00033876,2]
[362420396,1748275841568,-154.0,0.00033877,2]
[362420397,1748275841578,-173.129875,0.00033877,7]
[362420398,1748275841587,-151.0,0.00033877,7]
[362420399,1748275841598,-151.0,0.00033877,7]
[362420400,1748275841608,-151.0,0.00033877,7]
[362420401,1748275841618,-151.0,0.00033877,7]
[362420402,1748275841628,-151.0,0.00033877,7]
[362420403,1748275841638,-146249.45237159,0.00033877,2]
[362420404,1748275841678,-320.30662138,0.00033799,7]
[362420405,1748275841689,-376.51807984,0.00033799,7]
[362420406,1748275841698,-803.36529878,0.00033877,2]
[362420407,1748275841839,-500.0,0.00033799,7]
[362420408,1748275841851,-559.69620994,0.00033799,7]
[362420409,1748275841861,-12137.35379006,0.00033877,2]
[362420440,1748275846184,-162.96,0.00033699,2]
[362420441,1748275846195,-346.41820129,0.00033877,2]
[362420442,1748275846417,-1153.0,0.00031245,2]
[362420443,1748275846427,-2409.44628073,0.00033877,2]
[362420444,1748275846443,-731.55107096,0.00033877,2]
[362420445,1748275846455,-43654.82825459,0.00033877,2]
[362420446,1748275846465,-50020.69032199,0.00033877,2]
[362420447,1748275846509,-25707.2552888,0.00033877,2]
[362420454,1748276027540,170.75,0.00013699,2]
[362420455,1748276198446,150.0,0.0001801,2]
[362420462,1748276933475,250.0,0.00015,2]
[362420483,1748277023415,160.57,0.00013699,2]
[362420494,1748277032086,-854.32285236,0.0001998,2]
[362420496,1748277032096,-422.0259556,0.00027658,2]
[362420497,1748277032105,-500.0,0.00027758,2]
[362420499,1748277032114,-500.0,0.00029663,2]
[362420500,1748277032124,-2925.23719204,0.0002985,2]
[362420503,1748277032247,-6.91175596,0.0002985,2]
[362420504,1748277032256,-252.82824404,0.0003,5]
[362420505,1748277032308,-1485.74035596,0.0003,5]
[362420506,1748277032318,-471.9,0.00030422,2]
[362420507,1748277032328,-204.80674552,0.000309,23]
[362420508,1748277032338,-500.0,0.0003109,7]
[362420509,1748277032347,-204.80674528,0.00031279,24]
[362420510,1748277032357,-160.57,0.00031311,2]
[362420511,1748277032366,-1349.0,0.00031376,3]
[362420512,1748277032376,-400.0,0.00031377,2]
[362420513,1748277032524,-301.0,0.00031377,3]
[362420514,1748277032535,-154.0,0.00031378,2]
[362420515,1748277032545,-300.0,0.00031379,3]
[362420516,1748277032555,-465.413,0.0003138,2]
[362420518,1748277032564,-328.43036424,0.0003138,2]
[362420520,1748277032575,-298.35472746,0.0003138,2]
[362420522,1748277032592,-684.2149083,0.0003138,2]
[362420524,1748277032601,-938.0,0.0003138,2]
[362420526,1748277032611,-632.0,0.0003138,2]
[362420528,1748277032620,-154.0,0.0003138,2]
[362420530,1748277032629,-758.899,0.0003138,2]
[362420532,1748277032639,-500.0,0.00031522,7]
[362420534,1748277032648,-204.80674528,0.00031659,25]
[362420536,1748277032658,-365.108113,0.000319,5]
[362420538,1748277032667,-3509.63298375,0.00032,80]
[362420540,1748277032683,-6241.71211628,0.00032,80]
[362421042,1748277038117,-800.0,0.0003138,2]
[362421044,1748277038126,-10219.00000001,0.00032,80]
[362421046,1748277038138,-2849.65489996,0.00032,80]
[362421048,1748277038149,-679.93415712,0.00032035,2]
[362421050,1748277038159,-204.80674528,0.00032038,26]
[362421052,1748277038169,-500.0,0.00032071,7]
[362421054,1748277038179,-178.1,0.00032083,120]
[362421056,1748277038188,-1000.0,0.00032095,2]
[362421058,1748277038198,-1479.21,0.00032096,2]
[362421060,1748277038207,-238.75,0.00032156,2]
[362421062,1748277038217,-1366.64936548,0.00032165,2]
[362421065,1748277038233,-12175.3581,0.00032165,2]
[362421068,1748277038247,-1784.10286343,0.00032165,2]
[362421128,1748277038822,-4973.83967109,0.00032165,2]
[362421131,1748277038842,-186.44,0.00032176,80]
[362421134,1748277038858,-150.0,0.0003218,2]
[362421136,1748277038872,-668.65185757,0.00032192,2]
[362421139,1748277038893,-207.4,0.00032192,2]
[362421142,1748277038905,-668.65185757,0.00032192,2]
[362421145,1748277038925,-151.0,0.00032192,2]
[362421147,1748277038940,-150.0,0.00032247,2]
[362421150,1748277038955,-204.0,0.00032255,2]
[362421153,1748277038974,-152.53,0.00032315,2]
[362421155,1748277038990,-250.0,0.00032322,2]
[362421158,1748277039007,-443.13,0.00032348,2]
[362421161,1748277039022,-1000.0,0.00032386,2]
[362421163,1748277039037,-204.80674528,0.00032417,26]
[362421166,1748277039053,-500.0,0.00032572,7]
[362421168,1748277039068,-471.9,0.00032686,2]
[362421171,1748277039085,-500.0,0.00032723,2]
[362421174,1748277039102,-204.80674528,0.00032797,27]
[362421176,1748277039120,-1093.027846,0.0003286,12]
[362421179,1748277039137,-162.96,0.00032877,2]
[362421182,1748277039154,-14844.87908774,0.0003299,2]
[362421184,1748277039170,-160.0,0.00033,2]
[362421187,1748277039186,-160.0,0.00033,2]
[362421190,1748277039201,-160.0,0.00033,2]
[362421192,1748277039217,-160.0,0.00033,2]
[362421195,1748277039232,-160.0,0.00033,2]
[362421198,1748277039248,-160.0,0.00033,2]
[362421200,1748277039263,-160.0,0.00033,2]
[362421203,1748277039278,-160.0,0.00033,2]
[362421206,1748277039294,-160.0,0.00033,2]
[362421208,1748277039308,-160.0,0.00033,2]
[362421211,1748277039324,-160.0,0.00033,2]
[362421213,1748277039339,-186.6,0.00033,2]
[362421216,1748277039355,-160.0,0.00033,2]
[362421218,1748277039370,-160.0,0.00033,2]
[362421221,1748277039385,-160.0,0.00033,2]
[362421224,1748277039401,-160.0,0.00033,2]
[362421226,1748277039416,-160.0,0.00033,2]
[362421229,1748277039431,-169.0,0.00033,14]
[362421232,1748277039449,-500.0,0.00033,5]
[362421234,1748277039465,-500.0,0.00033,5]
[362421237,1748277039480,-500.0,0.00033,2]
[362421240,1748277039496,-150.0,0.00033108,2]
[362421242,1748277039510,-150.0,0.00033108,2]
[362421245,1748277039526,-150.0,0.00033135,2]
[362421247,1748277039541,-169.0,0.00033151,30]
[362421250,1748277039557,-200.0,0.00033163,2]
[362421253,1748277039573,-500.0,0.00033164,120]
[362421255,1748277039589,-500.0,0.00033164,120]
[362421258,1748277039604,-204.80674528,0.00033176,28]
[362421260,1748277039618,-500.0,0.00033215,7]
[362421263,1748277039633,-200.0,0.00033249,117]
[362421266,1748277039650,-2299.99999902,0.000334,2]
[362421268,1748277039665,-500.0,0.00033407,30]
[362421270,1748277039677,-500.0,0.00033407,30]
[362421272,1748277039686,-940.73463164,0.00033411,7]
[362421274,1748277039695,-1173.16364498,0.000335,2]
[362421276,1748277039705,-574.28,0.000335,31]
[362421278,1748277039715,-574.28,0.000335,31]
[362421280,1748277039725,-574.28,0.000335,31]
[362421282,1748277039734,-574.28,0.000335,31]
[362421301,1748277040001,-574.28,0.000335,31]
[362421305,1748277040023,-574.28,0.000335,31]
[362421307,1748277040036,-574.28,0.000335,31]
[362421309,1748277040048,-574.28,0.000335,31]
[362421311,1748277040058,-574.28,0.000335,31]
[362421313,1748277040068,-574.28,0.000335,31]
[362421315,1748277040077,-574.28,0.000335,31]
[362421317,1748277040088,-574.28,0.000335,31]
[362421320,1748277040096,-501.46591193,0.00033548,2]
[362421322,1748277040106,-204.80674528,0.00033555,29]
[362421324,1748277040115,-215.0738,0.00033561,2]
[362421326,1748277040125,-156.587,0.00033561,2]
[362421328,1748277040134,-200.0,0.00033564,117]
[362421331,1748277040143,-160.0,0.000336,5]
[362421334,1748277040153,-160.0,0.000336,5]
[362421337,1748277040162,-613.07105197,0.00033606,2]
[362421340,1748277040171,-500.0,0.00033607,7]
[362421342,1748277040180,-227.78397051,0.00033658,2]
[362421344,1748277040189,-150.0,0.00033683,2]
[362421346,1748277040198,-150.0,0.00033691,2]